[Event "Titled Tuesday Blitz July 26 Early 2022"]
[White "Begmuratov, Khumoyun"]
[Black "Zhigalko, Sergei"]
[WhiteFideId "14210207"]
[BlackFideId "13502956"]
[WhiteElo "1978"]
[BlackElo "2662"]
[Result "0-1"]
[Round "03"]
[TimeControl "180+1"]
[Date "2022.07.26"]
[WhiteClock "0:00:03"]
[BlackClock "0:00:11"]

1. e4 {[%clk 0:03:00]}  c5 {[%clk 0:02:59]} 2. Nf3 {[%clk 0:02:55]}  Nc6 {[%clk 0:02:59]} 3. Nc3 {[%clk 0:02:46]}  Nf6 {[%clk 0:02:59]} 4. d4 {[%clk 0:02:46]}  cxd4 {[%clk 0:03:00]} 5. Nxd4 {[%clk 0:02:47]}  e5 {[%clk 0:03:00]} 6. Ndb5 {[%clk 0:02:47]}  d6 {[%clk 0:03:01]} 7. Bg5 {[%clk 0:02:45]}  a6 {[%clk 0:03:00]} 8. Na3 {[%clk 0:02:45]}  b5 {[%clk 0:03:00]} 9. Nd5 {[%clk 0:02:42]}  Be7 {[%clk 0:03:00]} 10. Bxf6 {[%clk 0:02:41]}  Bxf6 {[%clk 0:03:01]} 11. c3 {[%clk 0:02:38]}  Bg5 {[%clk 0:03:01]} 12. Nc2 {[%clk 0:02:36]}  Ne7 {[%clk 0:03:00]} 13. Nce3 {[%clk 0:02:31]}  Bxe3 {[%clk 0:02:54]} 14. Nxe3 {[%clk 0:02:30]}  O-O {[%clk 0:02:44]} 15. g3 {[%clk 0:02:28]}  Be6 {[%clk 0:02:42]} 16. Bg2 {[%clk 0:02:28]}  a5 {[%clk 0:02:43]} 17. O-O {[%clk 0:02:27]}  Rb8 {[%clk 0:02:43]} 18. Qd2 {[%clk 0:02:27]}  Qb6 {[%clk 0:02:43]} 19. Rad1 {[%clk 0:02:25]}  Rfd8 {[%clk 0:02:41]} 20. Kh1 {[%clk 0:02:24]}  Bxa2 {[%clk 0:02:38]} 21. f4 {[%clk 0:02:13]}  Bb3 {[%clk 0:02:35]} 22. Rde1 {[%clk 0:02:13]}  b4 {[%clk 0:02:23]} 23. Ng4 {[%clk 0:02:09]}  f6 {[%clk 0:02:10]} 24. f5 {[%clk 0:01:38]}  bxc3 {[%clk 0:02:00]} 25. bxc3 {[%clk 0:01:32]}  Bc4 {[%clk 0:01:59]} 26. Rf2 {[%clk 0:01:18]}  a4 {[%clk 0:01:53]} 27. Bf1 {[%clk 0:01:08]}  Bf7 {[%clk 0:01:45]} 28. c4 {[%clk 0:00:51]}  Nc6 {[%clk 0:01:28]} 29. Rg2 {[%clk 0:00:41]}  Nd4 {[%clk 0:01:25]} 30. Nxf6+ {[%clk 0:00:15]}  gxf6 {[%clk 0:01:21]} 31. Qh6 {[%clk 0:00:15]}  d5 {[%clk 0:00:45]} 32. g4 {[%clk 0:00:11]}  Nf3 {[%clk 0:00:40]} 33. g5 {[%clk 0:00:07]}  Kh8 {[%clk 0:00:21]} 34. g6 {[%clk 0:00:05]}  Bxg6 {[%clk 0:00:16]} 35. fxg6 {[%clk 0:00:05]}  Rb7 {[%clk 0:00:15]} 36. Re3 {[%clk 0:00:04]}  Ng5 {[%clk 0:00:12]} 37. Reg3 {[%clk 0:00:04]}  Rg7 {[%clk 0:00:11]} 38. gxh7 {[%clk 0:00:03]}  Rxh7 {[%clk 0:00:11]} 39. Qxf6+ {[%clk 0:00:03]}  Qxf6 {[%clk 0:00:11]} 0-1


[Site "https://www.chess.com"]

[Event "Titled Tuesday Blitz July 26 Early 2022"]
[White "Bekturov, Tamerlan"]
[Black "Kamsky, Gata"]
[WhiteFideId "13710184"]
[BlackFideId "2000024"]
[WhiteElo "2128"]
[BlackElo "2645"]
[Result "1/2-1/2"]
[Round "03"]
[TimeControl "180+1"]
[Date "2022.07.26"]
[WhiteClock "0:00:10"]
[BlackClock "0:00:16"]

1. d4 {[%clk 0:02:47]}  Nf6 {[%clk 0:02:59]} 2. c4 {[%clk 0:02:46]}  g6 {[%clk 0:03:00]} 3. Nc3 {[%clk 0:02:46]}  Bg7 {[%clk 0:03:00]} 4. e4 {[%clk 0:02:45]}  d6 {[%clk 0:02:59]} 5. Be2 {[%clk 0:02:46]}  e5 {[%clk 0:02:59]} 6. Nf3 {[%clk 0:02:41]}  O-O {[%clk 0:02:57]} 7. Be3 {[%clk 0:02:41]}  c6 {[%clk 0:02:52]} 8. d5 {[%clk 0:02:38]}  c5 {[%clk 0:02:51]} 9. O-O {[%clk 0:02:35]}  Ng4 {[%clk 0:02:50]} 10. Bd2 {[%clk 0:02:35]}  f5 {[%clk 0:02:41]} 11. Ne1 {[%clk 0:02:35]}  Nf6 {[%clk 0:02:38]} 12. exf5 {[%clk 0:02:36]}  Bxf5 {[%clk 0:02:31]} 13. Nc2 {[%clk 0:02:32]}  Na6 {[%clk 0:02:22]} 14. Ne3 {[%clk 0:02:31]}  Bd7 {[%clk 0:02:22]} 15. a3 {[%clk 0:02:32]}  Nc7 {[%clk 0:02:16]} 16. b4 {[%clk 0:02:28]}  b6 {[%clk 0:02:16]} 17. bxc5 {[%clk 0:02:26]}  bxc5 {[%clk 0:02:15]} 18. Rb1 {[%clk 0:02:26]}  Rb8 {[%clk 0:02:13]} 19. Qc2 {[%clk 0:02:25]}  Qe7 {[%clk 0:02:11]} 20. Rxb8 {[%clk 0:02:20]}  Rxb8 {[%clk 0:02:10]} 21. Rb1 {[%clk 0:02:21]}  Qe8 {[%clk 0:02:10]} 22. Ne4 {[%clk 0:01:43]}  Nxe4 {[%clk 0:02:08]} 23. Qxe4 {[%clk 0:01:44]}  Na8 {[%clk 0:01:59]} 24. h3 {[%clk 0:01:41]}  Rxb1+ {[%clk 0:01:54]} 25. Qxb1 {[%clk 0:01:40]}  Nb6 {[%clk 0:01:54]} 26. Ba5 {[%clk 0:01:34]}  Qb8 {[%clk 0:01:31]} 27. Bg4 {[%clk 0:01:27]}  Be8 {[%clk 0:01:25]} 28. Be6+ {[%clk 0:01:26]}  Kh8 {[%clk 0:01:26]} 29. Nf1 {[%clk 0:01:20]}  Qb7 {[%clk 0:01:06]} 30. Nd2 {[%clk 0:00:54]}  Qa6 {[%clk 0:01:06]} 31. Bxb6 {[%clk 0:00:54]}  Qxb6 {[%clk 0:01:06]} 32. Qd3 {[%clk 0:00:46]}  Bf6 {[%clk 0:00:58]} 33. Ne4 {[%clk 0:00:45]}  Be7 {[%clk 0:00:58]} 34. Kh2 {[%clk 0:00:34]}  Qb2 {[%clk 0:00:54]} 35. Qf3 {[%clk 0:00:32]}  Kg7 {[%clk 0:00:42]} 36. g4 {[%clk 0:00:31]}  Qc1 {[%clk 0:00:38]} 37. Kg3 {[%clk 0:00:25]}  Qxc4 {[%clk 0:00:25]} 38. g5 {[%clk 0:00:15]}  Qc1 {[%clk 0:00:26]} 39. h4 {[%clk 0:00:16]}  h6 {[%clk 0:00:20]} 40. Kg4 {[%clk 0:00:14]}  Qf4+ {[%clk 0:00:18]} 41. Qxf4 {[%clk 0:00:14]}  exf4 {[%clk 0:00:19]} 42. Kxf4 {[%clk 0:00:15]}  hxg5+ {[%clk 0:00:19]} 43. hxg5 {[%clk 0:00:15]}  Bb5 {[%clk 0:00:19]} 44. Ke3 {[%clk 0:00:12]}  Ba4 {[%clk 0:00:19]} 45. f4 {[%clk 0:00:12]}  Bc2 {[%clk 0:00:18]} 46. Bd7 {[%clk 0:00:11]}  Bxe4 {[%clk 0:00:16]} 47. Kxe4 {[%clk 0:00:11]}  Bd8 {[%clk 0:00:17]} 48. Bb5 {[%clk 0:00:11]}  Ba5 {[%clk 0:00:17]} 49. Bd3 {[%clk 0:00:08]}  Bd2 {[%clk 0:00:17]} 50. Kf3 {[%clk 0:00:09]}  Kf7 {[%clk 0:00:16]} 51. Kg4 {[%clk 0:00:09]}  Kg7 {[%clk 0:00:17]} 52. f5 {[%clk 0:00:10]}  gxf5+ {[%clk 0:00:16]} 53. Kxf5 {[%clk 0:00:10]}  Bc1 {[%clk 0:00:16]} 54. Bc4 {[%clk 0:00:10]} 1/2-1/2


[Site "https://www.chess.com"]

[Event "Titled Tuesday Blitz July 26 Early 2022"]
[White "Bryakin, Mikhail"]
[Black "McCoy, Owen"]
[WhiteFideId "4165314"]
[BlackFideId "30924502"]
[WhiteElo "2422"]
[BlackElo "2535"]
[Result "1-0"]
[Round "03"]
[TimeControl "180+1"]
[Date "2022.07.26"]
[WhiteClock "0:00:12"]
[BlackClock "0:00:10"]

1. e4 {[%clk 0:03:00]}  c5 {[%clk 0:02:54]} 2. d4 {[%clk 0:03:00]}  d6 {[%clk 0:02:55]} 3. dxc5 {[%clk 0:03:00]}  Qa5+ {[%clk 0:02:54]} 4. Nc3 {[%clk 0:03:00]}  Qxc5 {[%clk 0:02:54]} 5. Be3 {[%clk 0:02:57]}  Qa5 {[%clk 0:02:51]} 6. Qd2 {[%clk 0:02:57]}  Nc6 {[%clk 0:02:48]} 7. Nf3 {[%clk 0:02:53]}  Nf6 {[%clk 0:02:40]} 8. Bc4 {[%clk 0:02:49]}  Bg4 {[%clk 0:02:36]} 9. Nd4 {[%clk 0:02:37]}  Ne5 {[%clk 0:02:30]} 10. Bb5+ {[%clk 0:02:34]}  Bd7 {[%clk 0:02:28]} 11. Bxd7+ {[%clk 0:02:24]}  Nfxd7 {[%clk 0:02:27]} 12. Nd5 {[%clk 0:02:22]}  Qxd2+ {[%clk 0:02:19]} 13. Kxd2 {[%clk 0:02:22]}  Rc8 {[%clk 0:02:13]} 14. b3 {[%clk 0:02:11]}  e6 {[%clk 0:02:06]} 15. Nf4 {[%clk 0:01:56]}  g5 {[%clk 0:01:37]} 16. Nd3 {[%clk 0:01:52]}  Rg8 {[%clk 0:01:30]} 17. f3 {[%clk 0:01:36]}  h5 {[%clk 0:01:13]} 18. Rac1 {[%clk 0:01:15]}  a6 {[%clk 0:01:10]} 19. c4 {[%clk 0:01:12]}  g4 {[%clk 0:01:02]} 20. Nxe5 {[%clk 0:01:06]}  Nxe5 {[%clk 0:00:43]} 21. f4 {[%clk 0:01:01]}  Nd7 {[%clk 0:00:42]} 22. Rhe1 {[%clk 0:00:56]}  Bh6 {[%clk 0:00:38]} 23. f5 {[%clk 0:00:40]}  Bxe3+ {[%clk 0:00:35]} 24. Rxe3 {[%clk 0:00:39]}  Ke7 {[%clk 0:00:36]} 25. Rf1 {[%clk 0:00:38]}  Ne5 {[%clk 0:00:28]} 26. Ne2 {[%clk 0:00:36]}  h4 {[%clk 0:00:25]} 27. Nf4 {[%clk 0:00:30]}  h3 {[%clk 0:00:15]} 28. gxh3 {[%clk 0:00:25]}  Nf3+ {[%clk 0:00:13]} 29. Kd3 {[%clk 0:00:23]}  Nxh2 {[%clk 0:00:12]} 30. Rg1 {[%clk 0:00:20]}  Nf3 {[%clk 0:00:11]} 31. Rg3 {[%clk 0:00:18]}  Ne5+ {[%clk 0:00:11]} 32. Ke2 {[%clk 0:00:18]}  gxh3 {[%clk 0:00:10]} 33. Nxh3 {[%clk 0:00:17]}  Rh8 {[%clk 0:00:08]} 34. fxe6 {[%clk 0:00:09]}  fxe6 {[%clk 0:00:07]} 35. Rg7+ {[%clk 0:00:10]}  Kf6 {[%clk 0:00:06]} 36. Rxb7 {[%clk 0:00:09]}  Rcg8 {[%clk 0:00:06]} 37. Kd2 {[%clk 0:00:04]}  Rg2+ {[%clk 0:00:05]} 38. Kc3 {[%clk 0:00:04]}  Rh2 {[%clk 0:00:04]} 39. Nf4 {[%clk 0:00:04]}  Rf2 {[%clk 0:00:03]} 40. Nd3 {[%clk 0:00:03]}  Nc6 {[%clk 0:00:03]} 41. Nxf2 {[%clk 0:00:02]}  Ke5 {[%clk 0:00:03]} 42. Nd3+ {[%clk 0:00:02]}  Kf6 {[%clk 0:00:03]} 43. e5+ {[%clk 0:00:03]}  dxe5 {[%clk 0:00:03]} 44. Rb6 {[%clk 0:00:03]}  e4 {[%clk 0:00:03]} 45. Nf4 {[%clk 0:00:03]}  Nd8 {[%clk 0:00:04]} 46. Ne2 {[%clk 0:00:03]}  Rh4 {[%clk 0:00:05]} 47. Rxa6 {[%clk 0:00:04]}  Ke5 {[%clk 0:00:05]} 48. Nc1 {[%clk 0:00:04]}  Rh2 {[%clk 0:00:05]} 49. Re2 {[%clk 0:00:05]}  Rh1 {[%clk 0:00:05]} 50. Kb2 {[%clk 0:00:05]}  Nf7 {[%clk 0:00:06]} 51. Rc2 {[%clk 0:00:06]}  Kf4 {[%clk 0:00:06]} 52. Ra5 {[%clk 0:00:07]}  Ng5 {[%clk 0:00:06]} 53. Ne2+ {[%clk 0:00:08]}  Kg4 {[%clk 0:00:07]} 54. Nc3 {[%clk 0:00:08]}  e5 {[%clk 0:00:07]} 55. Rxe5 {[%clk 0:00:09]}  Kf4 {[%clk 0:00:07]} 56. Re8 {[%clk 0:00:09]}  Nf3 {[%clk 0:00:07]} 57. Re2 {[%clk 0:00:09]}  Kg3 {[%clk 0:00:08]} 58. R2xe4 {[%clk 0:00:10]}  Rh2+ {[%clk 0:00:09]} 59. Re2 {[%clk 0:00:10]}  Rh1 {[%clk 0:00:09]} 60. R8e3 {[%clk 0:00:11]}  Kf4 {[%clk 0:00:08]} 61. Rxf3+ {[%clk 0:00:11]}  Kxf3 {[%clk 0:00:09]} 62. c5 {[%clk 0:00:11]}  Rh5 {[%clk 0:00:09]} 63. b4 {[%clk 0:00:12]}  Rh4 {[%clk 0:00:10]} 64. Kb3 {[%clk 0:00:12]} 1-0


[Site "https://www.chess.com"]

[Event "Titled Tuesday Blitz July 26 Early 2022"]
[White "Csonka, Balazs"]
[Black "Jarmula, Lukasz"]
[WhiteFideId "742910"]
[BlackFideId "1160664"]
[WhiteElo "2404"]
[BlackElo "2246"]
[Result "1-0"]
[Round "03"]
[TimeControl "180+1"]
[Date "2022.07.27"]
[WhiteClock "0:00:03"]
[BlackClock "0:00:10"]

1. d4 {[%clk 0:03:00]}  d5 {[%clk 0:02:59]} 2. Nf3 {[%clk 0:02:58]}  Nf6 {[%clk 0:02:59]} 3. c4 {[%clk 0:02:58]}  dxc4 {[%clk 0:02:59]} 4. e3 {[%clk 0:02:57]}  e6 {[%clk 0:03:00]} 5. Bxc4 {[%clk 0:02:58]}  c5 {[%clk 0:03:00]} 6. O-O {[%clk 0:02:58]}  Nc6 {[%clk 0:03:01]} 7. Qe2 {[%clk 0:02:54]}  a6 {[%clk 0:03:01]} 8. Rd1 {[%clk 0:02:52]}  b5 {[%clk 0:03:01]} 9. dxc5 {[%clk 0:02:43]}  Qc7 {[%clk 0:03:01]} 10. Bd3 {[%clk 0:02:43]}  Bxc5 {[%clk 0:03:01]} 11. a4 {[%clk 0:02:39]}  bxa4 {[%clk 0:03:01]} 12. Rxa4 {[%clk 0:02:36]}  O-O {[%clk 0:03:01]} 13. Nc3 {[%clk 0:02:36]}  Nb4 {[%clk 0:02:56]} 14. Bb1 {[%clk 0:02:31]}  a5 {[%clk 0:02:51]} 15. Ne4 {[%clk 0:01:46]}  Be7 {[%clk 0:02:29]} 16. Nd4 {[%clk 0:01:26]}  Ba6 {[%clk 0:02:21]} 17. Qf3 {[%clk 0:01:25]}  Bb7 {[%clk 0:02:11]} 18. Bd2 {[%clk 0:01:04]}  h6 {[%clk 0:01:21]} 19. Nxf6+ {[%clk 0:00:40]}  Bxf6 {[%clk 0:01:20]} 20. Be4 {[%clk 0:00:41]}  Bxe4 {[%clk 0:01:18]} 21. Qxe4 {[%clk 0:00:41]}  Bxd4 {[%clk 0:01:15]} 22. exd4 {[%clk 0:00:38]}  Nd5 {[%clk 0:01:14]} 23. Rda1 {[%clk 0:00:30]}  Nf6 {[%clk 0:01:09]} 24. Qe5 {[%clk 0:00:25]}  Qc2 {[%clk 0:01:08]} 25. Bxh6 {[%clk 0:00:21]}  Rab8 {[%clk 0:00:47]} 26. h3 {[%clk 0:00:07]}  Rxb2 {[%clk 0:00:45]} 27. Be3 {[%clk 0:00:08]}  Rfb8 {[%clk 0:00:29]} 28. Rxa5 {[%clk 0:00:07]}  Rb1+ {[%clk 0:00:29]} 29. Kh2 {[%clk 0:00:05]}  Qd1 {[%clk 0:00:27]} 30. Rxb1 {[%clk 0:00:03]}  Rxb1 {[%clk 0:00:27]} 31. Ra8+ {[%clk 0:00:04]}  Kh7 {[%clk 0:00:26]} 32. d5 {[%clk 0:00:03]}  Nh5 {[%clk 0:00:15]} 33. Qe4+ {[%clk 0:00:02]}  f5 {[%clk 0:00:13]} 34. Qxb1 {[%clk 0:00:01]}  Qxb1 {[%clk 0:00:13]} 35. dxe6 {[%clk 0:00:02]}  Qe4 {[%clk 0:00:13]} 36. Ra6 {[%clk 0:00:03]}  f4 {[%clk 0:00:12]} 37. Bc5 {[%clk 0:00:03]}  Nf6 {[%clk 0:00:12]} 38. e7 {[%clk 0:00:03]}  f3 {[%clk 0:00:11]} 39. gxf3 {[%clk 0:00:03]}  Qxf3 {[%clk 0:00:11]} 40. Re6 {[%clk 0:00:04]}  Qxf2+ {[%clk 0:00:10]} 41. Bxf2 {[%clk 0:00:03]} 1-0


[Site "https://www.chess.com"]

[Event "Titled Tuesday Blitz July 26 Early 2022"]
[White "Erenberg, Ariel"]
[Black "Kravtsiv, Martyn"]
[WhiteFideId "2811634"]
[BlackFideId "14113147"]
[WhiteElo "2243"]
[BlackElo "2694"]
[Result "0-1"]
[Round "03"]
[TimeControl "180+1"]
[Date "2022.07.26"]
[WhiteClock "0:00:18"]
[BlackClock "0:00:22"]

1. d4 {[%clk 0:03:00]}  d5 {[%clk 0:02:59]} 2. c4 {[%clk 0:03:00]}  e6 {[%clk 0:02:59]} 3. Nc3 {[%clk 0:03:00]}  Bb4 {[%clk 0:02:59]} 4. a3 {[%clk 0:02:59]}  Bxc3+ {[%clk 0:02:58]} 5. bxc3 {[%clk 0:03:00]}  Nf6 {[%clk 0:02:58]} 6. Nf3 {[%clk 0:03:01]}  O-O {[%clk 0:02:58]} 7. Bg5 {[%clk 0:02:58]}  Nbd7 {[%clk 0:02:47]} 8. e3 {[%clk 0:02:56]}  c5 {[%clk 0:02:36]} 9. cxd5 {[%clk 0:02:55]}  exd5 {[%clk 0:02:35]} 10. Bd3 {[%clk 0:02:55]}  Qa5 {[%clk 0:02:34]} 11. Qc2 {[%clk 0:02:52]}  c4 {[%clk 0:02:19]} 12. Bf5 {[%clk 0:02:45]}  g6 {[%clk 0:02:19]} 13. Bxd7 {[%clk 0:02:32]}  Nxd7 {[%clk 0:02:18]} 14. O-O {[%clk 0:02:32]}  Re8 {[%clk 0:02:14]} 15. Rfe1 {[%clk 0:02:04]}  Nb6 {[%clk 0:01:58]} 16. Ne5 {[%clk 0:02:04]}  Bf5 {[%clk 0:01:57]} 17. Qd2 {[%clk 0:01:59]}  Na4 {[%clk 0:01:33]} 18. Rac1 {[%clk 0:01:54]}  Qa6 {[%clk 0:01:31]} 19. Bf4 {[%clk 0:01:27]}  f6 {[%clk 0:01:29]} 20. Nf3 {[%clk 0:01:27]}  Qb6 {[%clk 0:01:22]} 21. h3 {[%clk 0:01:12]}  Qb2 {[%clk 0:01:13]} 22. Bd6 {[%clk 0:00:50]}  Re6 {[%clk 0:01:04]} 23. Bg3 {[%clk 0:00:47]}  Bd3 {[%clk 0:00:52]} 24. Qxb2 {[%clk 0:00:42]}  Nxb2 {[%clk 0:00:52]} 25. Nd2 {[%clk 0:00:42]}  Rae8 {[%clk 0:00:46]} 26. Ra1 {[%clk 0:00:36]}  Na4 {[%clk 0:00:44]} 27. Rec1 {[%clk 0:00:34]}  Rb6 {[%clk 0:00:42]} 28. Ra2 {[%clk 0:00:34]}  Kf7 {[%clk 0:00:40]} 29. h4 {[%clk 0:00:29]}  Ree6 {[%clk 0:00:39]} 30. Bf4 {[%clk 0:00:29]}  Rb3 {[%clk 0:00:32]} 31. f3 {[%clk 0:00:25]}  Rxc3 {[%clk 0:00:31]} 32. Rxc3 {[%clk 0:00:24]}  Nxc3 {[%clk 0:00:32]} 33. Rb2 {[%clk 0:00:25]}  b5 {[%clk 0:00:29]} 34. Bc7 {[%clk 0:00:21]}  a6 {[%clk 0:00:25]} 35. Ba5 {[%clk 0:00:19]}  Nd1 {[%clk 0:00:25]} 36. Rb4 {[%clk 0:00:19]}  c3 {[%clk 0:00:24]} 37. Nb3 {[%clk 0:00:19]}  Rxe3 {[%clk 0:00:22]} 38. Nc1 {[%clk 0:00:19]}  Bc4 {[%clk 0:00:22]} 39. Rb1 {[%clk 0:00:19]}  c2 {[%clk 0:00:22]} 40. Ra1 {[%clk 0:00:19]}  Nb2 {[%clk 0:00:20]} 41. Kf2 {[%clk 0:00:19]}  Re6 {[%clk 0:00:19]} 42. g4 {[%clk 0:00:18]}  Nd3+ {[%clk 0:00:20]} 43. Nxd3 {[%clk 0:00:18]}  Bxd3 {[%clk 0:00:21]} 44. Rc1 {[%clk 0:00:19]}  Re2+ {[%clk 0:00:21]} 45. Kg3 {[%clk 0:00:19]}  h6 {[%clk 0:00:20]} 46. Bb4 {[%clk 0:00:18]}  Bc4 {[%clk 0:00:20]} 47. Kf4 {[%clk 0:00:16]}  Bb3 {[%clk 0:00:20]} 48. Bc3 {[%clk 0:00:15]}  g5+ {[%clk 0:00:20]} 49. hxg5 {[%clk 0:00:15]}  hxg5+ {[%clk 0:00:20]} 50. Kg3 {[%clk 0:00:16]}  Kg6 {[%clk 0:00:20]} 51. Bb2 {[%clk 0:00:16]}  Rd2 {[%clk 0:00:20]} 52. Bc3 {[%clk 0:00:14]}  Rd1 {[%clk 0:00:20]} 53. Bb2 {[%clk 0:00:15]}  a5 {[%clk 0:00:20]} 54. Kf2 {[%clk 0:00:15]}  b4 {[%clk 0:00:20]} 55. axb4 {[%clk 0:00:16]}  axb4 {[%clk 0:00:20]} 56. Ke2 {[%clk 0:00:16]}  f5 {[%clk 0:00:20]} 57. Kf2 {[%clk 0:00:15]}  Kf6 {[%clk 0:00:20]} 58. Ke2 {[%clk 0:00:15]}  Ke6 {[%clk 0:00:20]} 59. Kf2 {[%clk 0:00:15]}  Ba4 {[%clk 0:00:20]} 60. Ke2 {[%clk 0:00:16]}  f4 {[%clk 0:00:21]} 61. Kf2 {[%clk 0:00:16]}  Kd6 {[%clk 0:00:21]} 62. Ke2 {[%clk 0:00:16]}  Kc6 {[%clk 0:00:21]} 63. Kf2 {[%clk 0:00:17]}  Kb5 {[%clk 0:00:22]} 64. Ke2 {[%clk 0:00:17]}  Kc4 {[%clk 0:00:22]} 65. Kf2 {[%clk 0:00:18]}  Kb3 {[%clk 0:00:22]} 0-1


[Site "https://www.chess.com"]

[Event "Titled Tuesday Blitz July 26 Early 2022"]
[White "Gunina, Valentina"]
[Black "Kuchava, Ana"]
[WhiteFideId "4167570"]
[BlackFideId "13605348"]
[WhiteElo "2386"]
[BlackElo "1955"]
[Result "1/2-1/2"]
[Round "03"]
[TimeControl "180+1"]
[Date "2022.07.27"]
[WhiteClock "0:00:05"]
[BlackClock "0:00:03"]

1. d4 {[%clk 0:03:00]}  d5 {[%clk 0:02:59]} 2. c4 {[%clk 0:03:00]}  e6 {[%clk 0:02:57]} 3. Nf3 {[%clk 0:03:01]}  Nf6 {[%clk 0:02:55]} 4. Nc3 {[%clk 0:03:01]}  Be7 {[%clk 0:02:55]} 5. Bg5 {[%clk 0:03:01]}  O-O {[%clk 0:02:54]} 6. e3 {[%clk 0:03:02]}  h6 {[%clk 0:02:54]} 7. Bh4 {[%clk 0:03:01]}  b6 {[%clk 0:02:55]} 8. Rc1 {[%clk 0:03:01]}  Bb7 {[%clk 0:02:51]} 9. Bxf6 {[%clk 0:03:02]}  Bxf6 {[%clk 0:02:51]} 10. cxd5 {[%clk 0:03:02]}  exd5 {[%clk 0:02:51]} 11. Bd3 {[%clk 0:03:03]}  Nd7 {[%clk 0:02:48]} 12. O-O {[%clk 0:03:03]}  c5 {[%clk 0:02:47]} 13. Bb1 {[%clk 0:03:00]}  c4 {[%clk 0:02:36]} 14. e4 {[%clk 0:02:56]}  dxe4 {[%clk 0:02:32]} 15. Nxe4 {[%clk 0:02:56]}  Qc7 {[%clk 0:02:23]} 16. Qc2 {[%clk 0:02:50]}  Bxe4 {[%clk 0:02:09]} 17. Qxe4 {[%clk 0:02:49]}  g6 {[%clk 0:02:08]} 18. Qd5 {[%clk 0:02:46]}  Kg7 {[%clk 0:01:43]} 19. Rxc4 {[%clk 0:02:43]}  Qd8 {[%clk 0:01:36]} 20. Rfc1 {[%clk 0:02:40]}  Re8 {[%clk 0:01:28]} 21. Rc7 {[%clk 0:02:34]}  Re7 {[%clk 0:01:25]} 22. Kf1 {[%clk 0:02:28]}  Nf8 {[%clk 0:01:16]} 23. Qxd8 {[%clk 0:02:24]}  Rxd8 {[%clk 0:01:15]} 24. Rxe7 {[%clk 0:02:25]}  Bxe7 {[%clk 0:01:15]} 25. Rc7 {[%clk 0:02:24]}  Bf6 {[%clk 0:01:13]} 26. Rxa7 {[%clk 0:02:17]}  Bxd4 {[%clk 0:01:11]} 27. Nxd4 {[%clk 0:02:17]}  Rxd4 {[%clk 0:01:12]} 28. Ke2 {[%clk 0:02:17]}  Ne6 {[%clk 0:01:10]} 29. g3 {[%clk 0:02:18]}  Rb4 {[%clk 0:01:07]} 30. b3 {[%clk 0:02:13]}  h5 {[%clk 0:00:56]} 31. h4 {[%clk 0:02:12]}  Kf6 {[%clk 0:00:54]} 32. Bd3 {[%clk 0:02:11]}  Rd4 {[%clk 0:00:28]} 33. Bc4 {[%clk 0:02:11]}  Rd6 {[%clk 0:00:28]} 34. Bxe6 {[%clk 0:02:07]}  Kxe6 {[%clk 0:00:26]} 35. a4 {[%clk 0:02:04]}  Rc6 {[%clk 0:00:24]} 36. Rb7 {[%clk 0:02:04]}  f6 {[%clk 0:00:23]} 37. b4 {[%clk 0:02:04]}  g5 {[%clk 0:00:23]} 38. a5 {[%clk 0:01:54]}  bxa5 {[%clk 0:00:22]} 39. bxa5 {[%clk 0:01:55]}  Rc2+ {[%clk 0:00:21]} 40. Ke3 {[%clk 0:01:50]}  Ra2 {[%clk 0:00:21]} 41. Rb5 {[%clk 0:01:44]}  gxh4 {[%clk 0:00:20]} 42. gxh4 {[%clk 0:01:45]}  Ra4 {[%clk 0:00:20]} 43. Rxh5 {[%clk 0:01:44]}  f5 {[%clk 0:00:19]} 44. Rh6+ {[%clk 0:01:44]}  Ke5 {[%clk 0:00:19]} 45. a6 {[%clk 0:01:44]}  Ra3+ {[%clk 0:00:19]} 46. Ke2 {[%clk 0:01:44]}  Kf4 {[%clk 0:00:19]} 47. Rf6 {[%clk 0:01:11]}  Ra2+ {[%clk 0:00:19]} 48. Kf1 {[%clk 0:01:11]}  Kg4 {[%clk 0:00:19]} 49. Kg2 {[%clk 0:00:40]}  Kxh4 {[%clk 0:00:13]} 50. Re6 {[%clk 0:00:36]}  Kg5 {[%clk 0:00:11]} 51. Kg3 {[%clk 0:00:35]}  Ra3+ {[%clk 0:00:09]} 52. Kg2 {[%clk 0:00:35]}  Kf4 {[%clk 0:00:09]} 53. Rc6 {[%clk 0:00:33]}  Ra2 {[%clk 0:00:09]} 54. Rb6 {[%clk 0:00:27]}  Ke4 {[%clk 0:00:08]} 55. Kg3 {[%clk 0:00:25]}  Ra3+ {[%clk 0:00:08]} 56. Kg2 {[%clk 0:00:25]}  Ra2 {[%clk 0:00:07]} 57. Rb4+ {[%clk 0:00:24]}  Ke5 {[%clk 0:00:07]} 58. Rb5+ {[%clk 0:00:24]}  Ke4 {[%clk 0:00:07]} 59. Rb6 {[%clk 0:00:25]}  Kf4 {[%clk 0:00:06]} 60. Rf6 {[%clk 0:00:20]}  Ra3 {[%clk 0:00:06]} 61. Re6 {[%clk 0:00:17]}  Ra2 {[%clk 0:00:06]} 62. Kg1 {[%clk 0:00:15]}  Ra3 {[%clk 0:00:06]} 63. Kf1 {[%clk 0:00:13]}  Ra2 {[%clk 0:00:06]} 64. Kg2 {[%clk 0:00:13]}  Ra3 {[%clk 0:00:07]} 65. Rh6 {[%clk 0:00:12]}  Ra2 {[%clk 0:00:07]} 66. Rg6 {[%clk 0:00:10]}  Ra3 {[%clk 0:00:07]} 67. Kf1 {[%clk 0:00:10]}  Ra2 {[%clk 0:00:06]} 68. Kg2 {[%clk 0:00:10]}  Ra3 {[%clk 0:00:06]} 69. Rf6 {[%clk 0:00:11]}  Ra2 {[%clk 0:00:06]} 70. Rc6 {[%clk 0:00:11]}  Ra3 {[%clk 0:00:06]} 71. Rc4+ {[%clk 0:00:11]}  Ke5 {[%clk 0:00:06]} 72. Rc6 {[%clk 0:00:11]}  Kf4 {[%clk 0:00:07]} 73. Rb6 {[%clk 0:00:12]}  Ra2 {[%clk 0:00:07]} 74. Rb4+ {[%clk 0:00:12]}  Ke5 {[%clk 0:00:07]} 75. Rb5+ {[%clk 0:00:13]}  Ke4 {[%clk 0:00:06]} 76. Kg3 {[%clk 0:00:11]}  Ra3+ {[%clk 0:00:06]} 77. Kg2 {[%clk 0:00:09]}  Kf4 {[%clk 0:00:06]} 78. Rb4+ {[%clk 0:00:08]}  Ke5 {[%clk 0:00:05]} 79. Rb6 {[%clk 0:00:07]}  Kf4 {[%clk 0:00:04]} 80. Rh6 {[%clk 0:00:06]}  Ra2 {[%clk 0:00:04]} 81. Re6 {[%clk 0:00:05]}  Ra3 {[%clk 0:00:03]} 1/2-1/2


[Site "https://www.chess.com"]